bitfinex-derivatives/quotes_BNBF0:USTF0_20250126
["timestamp","ask_amount","ask_price","bid_price","bid_amount"]
[1737926716942,0.29294157,682.73,681.17,0.26957692]
[1737926719141,0.29294157,682.73,681.16,0.29361677]
[1737926719342,0.29294157,682.73,681.17,0.26957556]
[1737926720949,0.29294157,682.73,681.16,0.29361677]
[1737926721247,0.29294157,682.73,681.17,0.26956924]
[1737926724051,0.29294157,682.73,681.16,0.29361677]
[1737926725051,0.29294157,682.73,681.17,0.26957514]
[1737926725247,0.29294157,682.73,681.16,0.29361677]
[1737926725447,0.29294157,682.73,681.17,0.26956627]
[1737926726753,0.29294157,682.73,681.18,0.2695732]
[1737926726947,0.29294157,682.73,681.19,0.2695732]
[1737926727149,0.29294157,682.73,681.17,0.2695732]
[1737926727353,0.29294157,682.73,681.18,0.2695732]
[1737926727556,0.29294157,682.73,681.17,0.2695732]
[1737926727754,0.29294157,682.73,681.19,0.2695732]
[1737926727954,0.29294157,682.73,681.2,0.2695732]
[1737926728153,0.29294157,682.73,681.17,0.2695732]
[1737926728354,0.29294157,682.73,681.16,0.29361677]
[1737926728553,0.29294157,682.73,681.17,0.26957116]
[1737926730457,0.29294157,682.73,681.16,0.29361677]
[1737926730949,0.29294157,682.73,681.17,0.26956942]
[1737926736661,0.29294157,682.73,681.17,1.36662391]
[1737926736861,0.29294157,682.73,681.18,0.26956942]
[1737926739462,0.29294157,682.73,681.25,1.09705449]
[1737926739662,0.29294157,682.73,681.26,0.26956942]
[1737926741771,0.29294157,682.73,681.27,0.26951475]
[1737926741968,0.29294157,682.73,681.28,0.26951475]
[1737926742173,0.29294157,682.73,681.26,0.26951475]
[1737926742474,0.29294157,682.73,681.3,1.09705449]
[1737926742667,0.29294157,682.73,681.31,0.26951475]
[1737926745468,0.29294157,682.73,681.32,0.26951527]
[1737926745774,0.29294157,682.73,681.33,0.26951527]
[1737926745969,0.29294157,682.73,681.34,0.26951527]
[1737926746166,0.29294157,682.73,681.35,0.26951527]
[1737926746367,0.29294157,682.73,681.36,0.26951527]
[1737926746570,0.29294157,682.73,681.31,0.26951527]
[1737926749475,0.29294157,682.73,681.31,1.36656976]
[1737926749675,0.29294157,682.73,681.32,0.26951527]
[1737926750982,0.29294157,682.73,681.33,0.26951991]
[1737926751282,0.29294157,682.73,681.34,0.26951991]
[1737926751481,0.29294157,682.73,681.32,0.26951991]
[1737926751678,0.29294157,682.73,681.33,0.26951991]
[1737926751879,0.29294157,682.73,681.35,1.09705449]
[1737926752182,0.29294157,682.73,681.36,0.26951991]
[1737926754585,0.29294157,682.73,681.37,0.269515]
[1737926757282,0.29294157,682.73,681.43,1.09705449]
[1737926757486,0.29294157,682.73,681.44,0.269515]
[1737926758486,0.29294157,682.73,681.45,0.26951397]
[1737926758682,0.29294157,682.73,681.46,0.26951397]
[1737926758880,0.29294157,682.73,681.44,0.26951397]
[1737926759080,0.29294157,682.73,681.45,0.26951397]
[1737926759284,0.29294157,682.73,681.44,0.26951397]
[1737926759686,0.29294157,682.73,681.44,1.36656846]
[1737926759887,0.29294157,682.73,681.44,1.09705449]
[1737926763086,0.29294157,682.73,681.25,1.09550909]
[1737926763288,0.29294157,682.73,681.26,0.26954998]
[1737926763482,0.29294157,682.73,681.23,1.09705449]
[1737926763688,0.29294157,682.73,681.24,0.26954957]
[1737926766194,0.29294157,682.73,681.26,1.09705449]
[1737926766486,0.29294157,682.73,681.27,0.26954957]
[1737926769894,0.29294157,682.73,681.29,1.09705449]
[1737926773302,0.29294157,682.73,681.16,0.29361677]
[1737926773303,0.29294157,682.73,681.22,1.09705449]
[1737926773600,0.29294157,682.73,681.23,0.26957706]
[1737926776395,0.29294157,682.73,681.17,1.09705449]
[1737926776795,0.29294157,682.73,681.18,0.26958346]
[1737926778505,0.29294157,682.73,681.16,0.29361677]
[1737926778704,0.29294157,682.73,681.17,0.26958225]
[1737926784509,1.0959749,682.58,681.28,1.09705449]
[1737926784708,0.29301453,682.56,681.29,0.26958225]
[1737926785109,0.29301453,682.56,681.3,0.26958085]
[1737926785309,0.29301453,682.56,681.29,0.26958085]
[1737926785506,0.29301453,682.56,681.3,0.26958085]
[1737926785711,0.29301453,682.56,681.31,0.26958085]
[1737926785911,0.29301453,682.56,681.29,0.26958085]
[1737926786104,0.29301453,682.56,681.3,0.26958085]
[1737926786304,0.29301453,682.56,681.29,0.26958085]
[1737926786510,0.29301453,682.56,681.3,0.26958085]
[1737926786706,0.29301453,682.56,681.29,0.26958085]
[1737926786911,0.29301453,682.56,681.3,0.26958085]
[1737926787211,0.29301453,682.56,681.31,0.26958085]
[1737926787512,0.29301453,682.56,681.32,0.26958085]
[1737926787812,0.29301453,682.56,681.2,1.09705449]
[1737926788012,0.29301453,682.56,681.21,0.26958345]
[1737926795318,0.29301453,682.56,681.22,0.26958216]
[1737926795518,0.29301453,682.56,681.23,0.26958216]
[1737926795819,0.29301453,682.56,681.24,0.26958216]
[1737926796020,0.29301453,682.56,681.21,0.26958216]
[1737926796221,0.29301453,682.56,681.25,0.26958216]
[1737926796418,0.29301453,682.56,681.26,0.26958216]
[1737926796615,0.29301453,682.56,681.21,0.26958216]
[1737926796820,0.29301453,682.56,681.22,0.26958216]
[1737926797019,0.29301453,682.56,681.24,1.09705449]
[1737926797219,0.29301453,682.56,681.25,0.26958216]
[1737926798221,0.29301453,682.56,681.24,1.09705449]
[1737926799721,0.29301453,682.56,681.25,1.09705449]
[1737926802821,0.29301453,682.56,681.18,1.09705449]
[1737926803017,0.29301453,682.56,681.19,0.26958363]
[1737926803422,0.29301453,682.56,681.18,1.09705449]
[1737926805718,0.29301453,682.56,681.11,1.09705449]
[1737926808528,0.29301453,682.56,681.02,1.09705449]
[1737926808731,0.29301453,682.56,681.03,0.26963396]
[1737926810226,0.29301453,682.56,681.02,1.09705449]
[1737926810428,0.29301453,682.56,681.03,0.2696359]
[1737926811029,0.29301453,682.56,681.06,1.09705449]
[1737926811330,0.29301453,682.56,681.07,0.2696359]
[1737926812126,0.29301453,682.56,681.08,0.26964016]
[1737926812327,0.29301453,682.56,681.09,0.26964016]
[1737926812526,0.29301453,682.56,681.07,0.26964016]
[1737926812727,0.29301453,682.56,681.08,0.26964016]
[1737926813132,0.29301453,682.56,681.09,0.26964016]
[1737926813332,0.29301453,682.56,681.07,0.26964016]
[1737926813533,0.29301453,682.56,681.08,0.26964016]
[1737926813832,0.29301453,682.56,681.09,0.26964016]
[1737926814034,0.29301453,682.56,681.1,0.26963865]
[1737926814235,0.29301453,682.56,681.07,0.26963865]
[1737926814535,1.38898943,682.56,681.07,0.26963865]
[1737926814735,1.38898943,682.56,681.08,0.26963865]
[1737926814933,1.38898943,682.56,681.05,0.26963865]
[1737926815138,1.38898943,682.56,681.06,0.26963865]
[1737926815337,1.38898943,682.56,681.05,0.26963865]
[1737926815531,1.38898943,682.56,681.06,0.26963865]
[1737926815736,1.38898943,682.56,681.07,0.26963865]
[1737926815932,1.38898943,682.56,681.04,1.09705449]
[1737926815933,1.38898943,682.56,681.08,0.26963865]
[1737926816133,1.38898943,682.56,681.09,0.26963865]
[1737926816340,1.38898943,682.56,681.1,0.26963865]
[1737926816737,1.38898943,682.56,681.11,0.26963865]
[1737926816935,1.38898943,682.56,681.05,0.26963865]
[1737926817138,1.38898943,682.56,681.06,0.26963865]
[1737926817536,1.0959749,682.52,681.07,1.09705449]
[1737926817738,0.29304029,682.5,681.07,1.09705449]
[1737926817941,0.29304029,682.5,681.08,0.26963865]
[1737926820644,0.29304029,682.5,681.09,0.26963865]
[1737926820839,0.29304029,682.5,681.06,0.26963865]
[1737926821040,0.29304029,682.5,681.07,0.26963865]
[1737926821242,0.29304029,682.5,681.06,0.26963865]
[1737926821438,0.29304029,682.5,681.07,0.26963865]
[1737926821639,0.29304029,682.5,681.06,0.26963865]
[1737926821838,0.29304029,682.5,681.07,0.26963865]
[1737926822043,0.29304029,682.5,681.06,0.26963865]
[1737926822238,0.29304029,682.5,681.07,0.26963865]
[1737926822437,0.29304029,682.5,681.06,0.26963865]
[1737926822640,0.29304029,682.5,681.07,0.26963865]
[1737926822835,0.29304029,682.5,681.06,0.26963865]
[1737926823044,0.29304029,682.5,681.08,0.26963865]
[1737926823243,0.29304029,682.5,681.05,1.09705449]
[1737926823542,0.29304029,682.5,681.06,0.26964271]
[1737926823939,1.38901519,682.5,681.07,1.09705449]
[1737926826645,0.29304029,682.5,680.81,1.09705449]
[1737926826837,0.29304029,682.5,680.82,0.26964023]
[1737926827644,0.29304029,682.5,680.81,1.09705449]
[1737926827836,0.29304029,682.5,680.82,0.26964012]
[1737926829644,0.29304029,682.5,680.84,1.09705449]
[1737926830048,0.29304029,682.5,680.85,0.26964012]
[1737926832544,0.29304029,682.5,680.85,1.36669461]
[1737926832744,0.29304029,682.5,680.86,0.26964012]
[1737926834351,0.29304029,682.5,680.87,0.26963196]
[1737926834554,0.29304029,682.5,680.86,0.26963196]
[1737926834852,0.29304029,682.5,680.87,0.26963196]
[1737926835053,0.29304029,682.5,680.88,0.26963196]
[1737926835248,0.29304029,682.5,680.86,0.26963196]
[1737926836051,0.29304029,682.5,681.09,1.09705449]
[1737926836252,0.29304029,682.5,681.1,0.26963135]
[1737926839056,0.29304029,682.5,681.12,1.09705449]
[1737926839256,0.29304029,682.5,681.13,0.26963135]
[1737926841957,1.0959749,682.45,681.19,1.09705449]
[1737926842257,0.29307035,682.43,681.2,0.26963135]
[1737926845459,1.0959749,682.34,681.27,1.09705449]
[1737926845656,0.29311759,682.32,681.27,1.09705449]
[1737926847865,1.38909249,682.32,681.27,1.09705449]
[1737926850866,1.38909249,682.32,680.72,1.48043009]
[1737926850867,0.29311759,682.32,681.18,1.09705449]
[1737926853267,0.29311759,682.32,681.19,1.09705449]
[1737926858567,0.29311759,682.32,681.2,0.26963131]
[1737926859967,0.29311759,682.32,681.19,1.09705449]
[1737926860163,0.29311759,682.32,681.2,0.26963152]
[1737926861873,0.29311759,682.32,681.21,0.26963174]
[1737926862067,0.29311759,682.32,681.2,0.26963174]
[1737926862267,0.29311759,682.32,681.21,0.26963174]
[1737926862467,0.29311759,682.32,681.22,0.26963174]
[1737926862672,0.29311759,682.32,681.2,0.26963174]
[1737926863667,0.29311759,682.32,681.19,1.09705449]
[1737926863866,1.0959749,682.28,681.31,1.09705449]
[1737926864067,0.29313907,682.27,681.31,1.09705449]
[1737926866874,0.29313907,682.27,681.13,1.09550909]
[1737926866875,0.29313907,682.27,681.28,1.09705449]
[1737926868879,0.29313907,682.27,681.27,1.09705449]
[1737926871781,0.29313907,682.27,681.26,1.09705449]
[1737926874574,0.29313907,682.27,681.23,1.09705449]
[1737926877183,0.29313907,682.27,681.21,1.09705449]
[1737926882787,0.29313907,682.27,681.22,0.26963755]
[1737926883390,0.29313907,682.27,681.21,1.09705449]
[1737926884990,0.29313907,682.27,681.22,0.26963685]
[1737926886492,0.29313907,682.27,681.24,1.09705449]
[1737926886785,0.29313907,682.27,681.25,0.26963685]
[1737926887192,0.29313907,682.27,681.24,1.09705449]
[1737926890192,0.29313907,682.27,680.58,0.76279208]
[1737926890193,0.29313907,682.27,681.23,1.09705449]
[1737926897201,0.29313907,682.27,680.91,1.09550909]
[1737926897202,0.29313907,682.27,681.16,1.09705449]
[1737926899704,0.29313907,682.27,681.18,1.09705449]
[1737926903404,0.29313907,682.27,681.17,1.09705449]
[1737926904914,0.29313907,682.27,681.18,0.26963523]
[1737926905813,0.29313907,682.27,681.26,1.09705449]
[1737926910517,0.29313907,682.27,681.21,1.09705449]
[1737926913923,0.29313907,682.27,681.22,1.09705449]
[1737926916925,0.29313907,682.27,681.2,1.09705449]
[1737926920724,0.29313907,682.27,681.17,1.09705449]
[1737926923125,0.29313907,682.27,681.14,1.09705449]
[1737926923326,0.29313907,682.27,681.15,0.26959375]
[1737926926427,0.29313907,682.27,681.22,1.09705449]
[1737926926627,0.29313907,682.27,681.23,0.26959375]
[1737926930531,0.29313907,682.27,681.3,1.09705449]
[1737926930726,0.29313907,682.27,681.31,0.26960727]
[1737926934333,0.29313907,682.27,681.28,0.26960727]
[1737926934527,0.29313907,682.27,681.29,0.26960727]
[1737926934726,0.29313907,682.27,681.27,1.09705449]
[1737926934727,0.29313907,682.27,681.3,0.26960727]
[1737926934928,0.29313907,682.27,681.27,1.09705449]
[1737926934929,0.29313907,682.27,681.28,0.26960727]
[1737926935128,0.29313907,682.27,681.29,0.26960727]
[1737926935332,0.29313907,682.27,681.28,0.26960727]
[1737926935529,0.29313907,682.27,681.29,0.26960727]
[1737926935733,0.29313907,682.27,681.3,0.26960727]
[1737926935930,0.29313907,682.27,681.28,0.26960727]
[1737926936134,0.29313907,682.27,681.29,0.26960727]
[1737926936334,0.29313907,682.27,681.3,0.26960727]
[1737926936635,0.29313907,682.27,681.31,0.26960727]
[1737926938130,0.29313907,682.27,681.28,1.36666176]
[1737926938334,0.29313907,682.27,681.29,0.26960727]
[1737926939333,0.29313907,682.27,681.3,0.269607]
[1737926939530,0.29313907,682.27,681.29,0.269607]
[1737926939736,0.29313907,682.27,681.3,0.269607]
[1737926939940,0.29313907,682.27,681.29,0.269607]
[1737926940141,0.29313907,682.27,681.3,0.269607]
[1737926940335,0.29313907,682.27,681.29,1.09705449]
[1737926944348,0.29313907,682.27,681.19,1.09705449]
[1737926948147,0.29313907,682.27,681.13,1.09705449]
[1737926948750,0.29313907,682.27,681.14,0.26959133]
[1737926948951,0.29313907,682.27,681.13,1.09705449]
[1737926950151,0.29313907,682.27,681.14,0.26959004]
[1737926950346,0.29313907,682.27,681.13,1.09705449]
[1737926950551,0.29313907,682.27,681.14,0.26955262]
[1737926951954,0.29313907,682.27,681.19,1.09705449]
[1737926956352,0.29313907,682.27,681.15,1.09705449]
[1737926956653,0.29313907,682.27,681.16,0.26953845]
[1737926958656,0.29313907,682.27,681.15,1.09705449]
[1737926959356,0.29313907,682.27,681.16,0.26954325]
[1737926959747,0.29313907,682.27,681.11,1.09705449]
[1737926959950,0.29313907,682.27,681.12,0.26954316]
[1737926960149,0.29313907,682.27,681.11,1.09705449]
[1737926960349,0.29313907,682.27,681.12,0.26954461]
[1737926962357,0.29313907,682.27,681.15,1.09705449]
[1737926962556,0.29313907,682.27,681.16,0.26954461]
[1737926965655,0.29313907,682.27,680.46,1.31461091]
[1737926965656,0.29313907,682.27,681.24,1.09705449]
[1737926965858,0.29313907,682.27,681.25,0.26954461]
[1737926966758,0.29313907,682.27,681.24,1.09705449]
[1737926966958,0.29313907,682.27,681.25,0.26954192]
[1737926968761,0.29313907,682.27,681.26,0.26954171]
[1737926968958,0.29313907,682.27,681.25,0.26954171]
[1737926969260,0.29313907,682.27,681.34,1.09705449]
[1737926969462,0.29313907,682.27,681.35,0.26954171]
[1737926972362,0.29313907,682.27,681.36,0.26954172]
[1737926974963,0.29313907,682.27,681.37,1.09705449]
[1737926975158,0.29313907,682.27,681.38,0.26954172]
[1737926975958,0.29313907,682.27,681.37,1.09705449]
[1737926976158,0.29313907,682.27,681.38,0.26954183]
[1737926977167,0.29313907,682.27,681.37,1.09705449]
[1737926978267,0.29313907,682.27,681.32,1.09705449]
[1737926978468,0.29313907,682.27,681.33,0.26954658]
[1737926980964,0.29313907,682.27,681.32,1.09705449]
[1737926981170,0.29313907,682.27,681.33,0.26954345]
[1737926981868,0.29313907,682.27,681.34,0.26954345]
[1737926982168,0.29313907,682.27,681.35,0.26954345]
[1737926982364,0.29313907,682.27,681.3,0.26954345]
[1737926982569,0.29313907,682.27,681.31,0.26954345]
[1737926982867,0.29313907,682.27,681.32,0.26954345]
[1737926983068,0.29313907,682.27,681.33,0.26954345]
[1737926983266,0.29313907,682.27,681.34,0.26954345]
[1737926983467,0.29313907,682.27,681.35,0.26954345]
[1737926983664,0.29313907,682.27,681.36,0.26954345]
[1737926983870,0.29313907,682.27,681.3,0.26954345]
[1737926984167,0.29313907,682.27,681.29,1.09705449]
[1737926985369,0.29313907,682.27,681.3,0.269543]
[1737926985869,0.29313907,682.27,681.36,1.09705449]
[1737926987170,0.29313907,682.27,681.37,0.26954174]
[1737926989970,0.29313907,682.27,681.44,1.09705449]
[1737926993372,0.29313907,682.27,681.45,1.09705449]
[1737926995075,0.29313907,682.27,681.46,0.26954066]
[1737926996770,0.29313907,682.27,681.47,0.26954214]
[1737926999378,0.29313907,682.27,681.46,1.09705449]
[1737926999782,0.29313907,682.27,680.82,1.48015845]
[1737926999783,0.29313907,682.27,681.55,1.09705449]
[1737927002181,0.29313907,682.27,681.51,1.09705449]
[1737927005585,0.29313907,682.27,681.06,0.76249353]
[1737927005586,0.29313907,682.27,681.52,1.09705449]
[1737927008686,0.29313907,682.27,681.43,1.09705449]
[1737927012093,0.29313907,682.27,680.75,0.7176818]
[1737927012094,0.29313907,682.27,681.33,1.09705449]
[1737927015995,0.29313907,682.27,681.35,1.09705449]
[1737927019091,0.29313907,682.27,681.36,0.26954546]
[1737927019500,0.29313907,682.27,681.37,1.09705449]
[1737927019699,0.29313907,682.27,681.38,0.26954546]
[1737927020998,0.29313907,682.27,681.37,1.09705449]
[1737927021898,0.29313907,682.27,681.38,0.26954644]
[1737927022099,0.29313907,682.27,681.37,1.09705449]
[1737927022299,0.29313907,682.27,681.38,0.26954657]
[1737927024006,0.29313907,682.27,681.37,1.09705449]
[1737927024204,0.29313907,682.27,681.38,0.26954559]
[1737927025699,0.29313907,682.27,681.48,1.09705449]
[1737927029908,0.29313907,682.27,681.1,1.09705449]
[1737927033215,0.29313907,682.27,681.03,1.09705449]
[1737927035713,0.29313907,682.27,681.04,0.26959728]
[1737927036518,0.29313907,682.27,681.01,0.26959728]
[1737927036717,0.29313907,682.27,681.02,0.26959728]
[1737927036918,0.29313907,682.27,681.03,0.26959728]
[1737927037213,0.29313907,682.27,681.04,0.26959728]
[1737927037417,0.29313907,682.27,681.01,0.26959728]
[1737927037717,0.29313907,682.27,681.02,0.26959728]
[1737927039220,0.29313907,682.27,681.03,0.26959728]
[1737927039518,0.29313907,682.27,681.04,0.26959728]
[1737927039716,0.29313907,682.27,681.05,0.26959728]
[1737927039920,0.29313907,682.27,681.1,1.09705449]
[1737927040121,0.29313907,682.27,681.11,0.26959299]
[1737927041823,0.29313907,682.27,681.12,0.2695932]
[1737927042224,0.29313907,682.27,681.13,0.2695932]
[1737927042422,0.29313907,682.27,681.11,0.2695932]
[1737927042620,0.29313907,682.27,681.12,0.2695932]
[1737927043021,0.29313907,682.27,681.13,0.2695932]
[1737927043225,0.29313907,682.27,681.21,1.09705449]
[1737927043419,0.29313907,682.27,681.22,0.2695932]
[1737927045923,0.29313907,682.27,681.21,1.09705449]
[1737927046130,0.29313907,682.27,681.22,0.2696043]
[1737927047029,0.29313907,682.27,681.23,0.2696043]
[1737927047229,0.29313907,682.27,681.15,0.2696043]
[1737927047432,0.29313907,682.27,681.16,0.26960328]
[1737927047625,0.29313907,682.27,681.15,0.26960328]
[1737927050134,0.29313907,682.27,681.16,0.26960328]
[1737927050330,0.29313907,682.27,681.17,0.26960328]
[1737927050531,0.29313907,682.27,681.14,0.26960328]
[1737927050730,0.29313907,682.27,681.15,0.26960328]
[1737927050928,0.29313907,682.27,681.14,0.26960328]
[1737927052135,0.29313907,682.27,681.15,1.09705449]
[1737927052336,0.29313907,682.27,681.16,0.26960328]
[1737927053036,0.29313907,682.27,681.17,0.26959648]
[1737927053329,0.29313907,682.27,681.15,1.09705449]
[1737927053534,0.29313907,682.27,681.16,0.26959903]
[1737927055333,0.29313907,682.27,681.15,1.09705449]
[1737927055334,0.29313907,682.27,681.17,0.26959903]
[1737927055535,0.29313907,682.27,681.18,0.26959903]
[1737927055734,0.29313907,682.27,681.19,0.26959903]
[1737927055930,0.29313907,682.27,681.15,1.09705449]
[1737927055931,0.29313907,682.27,681.16,0.26959903]
[1737927056130,0.29313907,682.27,681.23,1.09705449]
[1737927059837,0.29313907,682.27,677.21,2.27503402]
[1737927059838,0.29313907,682.27,681.08,1.09705449]
[1737927061536,0.29313907,682.27,681.09,0.26961662]
[1737927062733,0.29313907,682.27,681.08,1.09705449]
[1737927063434,0.29313907,682.27,681.09,0.26962712]
[1737927063839,0.29313907,682.27,681.09,1.36668161]
[1737927064138,0.29313907,682.27,681.09,1.09705449]
[1737927066639,0.29313907,682.27,680.7,1.09550909]
[1737927066640,0.29313907,682.27,681.1,1.09705449]
[1737927067439,0.29313907,682.27,681.11,0.26962229]
[1737927069643,0.29313907,682.27,681.13,1.09705449]
[1737927069843,0.29313907,682.27,681.14,0.26962229]
[1737927070245,0.29313907,682.27,681.13,1.09705449]
[1737927072145,0.29313907,682.27,681.06,1.09705449]
[1737927072546,0.29313907,682.27,681.07,0.26963473]
[1737927072749,0.29313907,682.27,681.08,0.26963304]
[1737927072946,0.29313907,682.27,681.09,0.26963304]
[1737927073146,0.29313907,682.27,681.07,0.26963304]
[1737927073348,0.29313907,682.27,681.06,1.09705449]
[1737927073548,0.29313907,682.27,681.07,0.26963241]
[1737927074448,0.29313907,682.27,681.08,0.26963346]
[1737927074649,0.29313907,682.27,681.07,0.26963346]
[1737927074845,0.29313907,682.27,681.08,0.26963346]
[1737927075247,0.29313907,682.27,681.09,0.26963346]
[1737927075443,0.29313907,682.27,681.08,0.26963346]
[1737927075647,0.29313907,682.27,681.09,0.26963273]
[1737927075848,0.29313907,682.27,681.08,0.26963273]
[1737927076047,0.29313907,682.27,681.07,1.09705449]
[1737927076247,0.29313907,682.27,681.08,0.26962742]
[1737927078556,0.29313907,682.27,681.09,1.09705449]
[1737927078751,0.29313907,682.27,681.1,0.26962742]
[1737927081856,0.29313907,682.27,681.11,0.26962512]
[1737927082054,0.29313907,682.27,681.12,0.26962512]
[1737927082358,0.29313907,682.27,681.13,0.26962512]
[1737927082555,0.29313907,682.27,681.1,0.26962512]
[1737927082755,0.29313907,682.27,681.11,0.26962512]
[1737927082949,0.29313907,682.27,681.1,0.26962512]
[1737927083154,0.29313907,682.27,681.11,0.26962512]
[1737927083349,0.29313907,682.27,681.1,0.26962512]
[1737927083551,0.29313907,682.27,681.11,0.26963225]
[1737927083853,0.29313907,682.27,681.12,0.26963225]
[1737927084048,0.29313907,682.27,681.13,0.26963225]
[1737927084254,0.29313907,682.27,681.14,0.26963225]
[1737927084549,0.29313907,682.27,681.15,0.26963225]
[1737927084754,0.29313907,682.27,681.16,0.26963225]
[1737927084955,0.29313907,682.27,681.17,0.26963225]
[1737927085155,0.29313907,682.27,681.1,0.26963225]
[1737927085349,0.29313907,682.27,681.11,0.26963125]
[1737927085554,0.29313907,682.27,681.09,1.09705449]
[1737927085555,0.29313907,682.27,681.21,1.09705449]
[1737927085855,0.29313907,682.27,681.22,0.26963125]
[1737927088462,0.29313907,682.27,681.21,1.09705449]
[1737927089060,0.29313907,682.27,681.23,1.09705449]
[1737927092367,0.29313907,682.27,681.16,1.09705449]
[1737927092567,0.29313907,682.27,681.17,0.26963042]
[1737927093561,0.29313907,682.27,681.16,1.09705449]
[1737927093765,0.29313907,682.27,681.17,0.2696303]
[1737927094571,0.29313907,682.27,681.16,1.09705449]
[1737927094769,0.29313907,682.27,681.17,0.26963135]
[1737927095164,0.29313907,682.27,681.19,1.09705449]
[1737927098268,0.29313907,682.27,681.2,0.26963008]
[1737927098473,0.29313907,682.27,681.21,1.09705449]
[1737927101173,0.29313907,682.27,681.07,1.09705449]
[1737927101575,0.29313907,682.27,681.08,0.26957076]
[1737927104378,0.29313907,682.27,681.12,1.09705449]
[1737927104678,0.29313907,682.27,681.13,0.26957076]
[1737927108082,0.29313907,682.27,681.2,1.09705449]
[1737927108275,0.29313907,682.27,681.21,0.26957076]
[1737927111485,0.29313907,682.27,681.22,1.09705449]
[1737927111677,0.29313907,682.27,681.23,0.26957076]
[1737927112885,0.29313907,682.27,681.24,0.26956177]
[1737927113083,0.29313907,682.27,681.23,0.26956177]
[1737927113278,0.29313907,682.27,681.24,0.26956177]
[1737927113481,0.29313907,682.27,681.23,0.26956177]
[1737927113682,0.29313907,682.27,681.24,0.26956177]
[1737927113882,0.29313907,682.27,681.25,0.26956177]
[1737927114083,0.29313907,682.27,681.25,1.09705449]
[1737927114283,0.29313907,682.27,681.26,0.26956177]
[1737927116580,0.29313907,682.27,681.27,0.26955682]
[1737927116785,0.29313907,682.27,681.26,0.26955682]
[1737927117081,0.29313907,682.27,681.3,1.09705449]
[1737927117287,0.29313907,682.27,681.31,0.26955682]
[1737927118285,0.29313907,682.27,681.32,0.26955745]
[1737927118484,0.29313907,682.27,681.31,0.26955745]
[1737927118687,0.29313907,682.27,681.32,0.26955745]
[1737927118887,0.29313907,682.27,681.31,0.26955745]
[1737927119088,0.29313907,682.27,681.32,0.26955745]
[1737927119588,0.29313907,682.27,681.33,0.26955745]
[1737927119789,0.29313907,682.27,681.31,0.26955745]
[1737927119989,0.29313907,682.27,681.32,0.26955745]
[1737927120291,0.29313907,682.27,681.33,0.26955745]
[1737927120490,0.29313907,682.27,681.31,0.26955745]
[1737927120692,0.29313907,682.27,681.32,0.26955745]
[1737927120892,0.29313907,682.27,681.33,0.26955745]
[1737927121092,0.29313907,682.27,681.29,0.26955745]
[1737927121387,0.29313907,682.27,681.3,0.26955745]
[1737927121593,0.29313907,682.27,681.29,0.26955745]
[1737927121792,0.29313907,682.27,681.3,0.26955745]
[1737927121988,0.29313907,682.27,681.31,0.26955745]
[1737927122194,0.29313907,682.27,681.32,0.26955745]
[1737927122493,0.29313907,682.27,681.28,1.09705449]
[1737927122494,0.29313907,682.27,681.33,0.26955745]
[1737927122694,0.29313907,682.27,681.29,0.26955745]
[1737927122994,0.29313907,682.27,681.3,0.26955745]
[1737927123193,0.29313907,682.27,681.29,0.26955745]
[1737927123495,0.29313907,682.27,681.3,0.26955745]
[1737927123694,0.29313907,682.27,681.29,0.26955745]
[1737927123894,0.29313907,682.27,681.3,0.26955745]
[1737927124094,0.29313907,682.27,681.28,1.09705449]
[1737927124095,0.29313907,682.27,681.29,0.26955745]
[1737927124294,0.29313907,682.27,681.3,0.26955745]
[1737927124495,0.29313907,682.27,681.31,0.26955745]
[1737927124694,0.29313907,682.27,681.29,0.26955745]
[1737927124890,0.29313907,682.27,681.3,0.26955745]
[1737927125093,0.29313907,682.27,681.28,1.09705449]
[1737927125496,0.29313907,682.27,681.27,1.09705449]
[1737927128898,0.29313907,682.27,680.9,1.09705449]
[1737927129091,0.29313907,682.27,680.91,0.56321361]
[1737927129292,0.29313907,682.27,680.92,0.5632093]
[1737927129594,0.29313907,682.27,680.93,0.56320498]
[1737927129790,0.29313907,682.27,680.94,0.56320067]
[1737927129996,0.29313907,682.27,680.95,0.29370732]
[1737927132290,0.29313907,682.27,680.96,0.26949404]
[1737927132492,0.29313907,682.27,680.97,0.29369869]
[1737927133398,0.29313907,682.27,680.98,0.26949411]
[1737927133598,0.29313907,682.27,680.99,0.29369006]
[1737927133798,0.29313907,682.27,681.0,0.26949411]
[1737927134001,0.29313907,682.27,681.01,0.29368144]
[1737927134498,0.29313907,682.27,681.02,0.26949411]
[1737927134699,0.29313907,682.27,681.03,0.29367281]
[1737927134899,0.29313907,682.27,681.04,0.26949411]
[1737927135093,0.29313907,682.27,681.05,0.29366419]
[1737927135295,0.29313907,682.27,681.06,0.26949411]
[1737927138701,0.29313907,682.27,681.27,1.09705449]
[1737927138899,0.29313907,682.27,681.28,0.26949411]
[1737927139903,0.29313907,682.27,681.29,0.26951274]
[1737927140101,0.29313907,682.27,681.28,0.26951274]
[1737927141701,0.29313907,682.27,681.27,1.09705449]
[1737927141902,0.29313907,682.27,681.28,0.26954396]
[1737927144402,0.29313907,682.27,681.29,0.26954396]
[1737927144597,0.29313907,682.27,681.2,1.09705449]
[1737927144598,0.29313907,682.27,681.21,0.26954396]
[1737927144802,0.29313907,682.27,681.22,0.26954396]
[1737927145003,0.29313907,682.27,681.23,0.26954396]